bitfinex-derivatives/quotes_BTCF0:USTF0_20250125
["timestamp","ask_amount","ask_price","bid_price","bid_amount"]
[1737795277175,0.31496961,104330.0,104320.0,2.1300358]
[1737795277767,0.31496961,104330.0,104320.0,2.10241332]
[1737795277977,0.31496961,104330.0,104320.0,1.74161332]
[1737795279175,0.46835161,104330.0,104320.0,1.74161332]
[1737795279978,0.46835161,104330.0,104320.0,0.24161332]
[1737795280677,0.153396,104320.0,104310.0,1.7749697]
[1737795281173,0.153396,104320.0,104310.0,0.2749697]
[1737795284680,0.153396,104320.0,104310.0,0.4473689]
[1737795285782,0.185596,104320.0,104310.0,0.4473689]
[1737795296191,0.185596,104320.0,104310.0,0.5162889]
[1737795296894,0.185596,104320.0,104310.0,0.60450622]
[1737795297686,0.185596,104320.0,104310.0,0.54385922]
[1737795297887,0.185596,104320.0,104310.0,0.4859654]
[1737795299500,0.185596,104320.0,104310.0,0.83385918]
[1737795306589,0.185596,104320.0,104310.0,0.87534489]
[1737795307291,0.185596,104320.0,104310.0,1.2200164]
[1737795307793,0.185596,104320.0,104310.0,1.1178964]
[1737795310395,0.19771301,104320.0,104310.0,1.1178964]
[1737795311489,0.28374189,104320.0,104310.0,1.1178964]
[1737795313995,0.31584189,104320.0,104310.0,1.1178964]
[1737795314387,0.67664189,104320.0,104310.0,0.9644874]
[1737795314787,0.67664189,104320.0,104310.0,0.92300169]
[1737795319095,0.67664189,104320.0,104310.0,0.80837886]
[1737795322905,0.67664189,104320.0,104310.0,0.57551197]
[1737795326701,0.67664189,104320.0,104310.0,0.51761815]
[1737795327100,0.67664189,104320.0,104310.0,0.23019206]
[1737795331113,0.59061301,104320.0,104310.0,0.40264715]
[1737795331807,0.64850683,104320.0,104310.0,0.40264715]
[1737795336806,0.59061301,104320.0,104310.0,0.46054097]
[1737795338414,0.59061301,104320.0,104310.0,0.40264715]
[1737795340019,0.79116707,104320.0,104310.0,0.40264715]
[1737795340314,0.71475006,104320.0,104310.0,0.61395197]
[1737795340517,0.71475006,104320.0,104310.0,0.55605815]
[1737795340715,0.71475006,104320.0,104310.0,2.08815815]
[1737795344222,0.71475006,104320.0,104310.0,0.58815815]
[1737795344615,0.60014774,104320.0,104310.0,0.41570306]
[1737795346025,0.60014774,104320.0,104310.0,0.47359688]
[1737795348424,0.71475006,104320.0,104310.0,0.47359688]
[1737795351028,0.71475006,104320.0,104310.0,0.41570306]
[1737795352430,0.71475006,104320.0,104310.0,0.47359688]
[1737795352620,0.71475006,104320.0,104310.0,0.93671621]
[1737795361635,0.74525006,104320.0,104310.0,0.90461621]
[1737795361837,0.77805006,104320.0,104310.0,0.90461621]
[1737795364240,0.77805006,104320.0,104310.0,0.38360306]
[1737795366038,0.41725006,104320.0,104310.0,0.38360306]
[1737795366841,0.41725006,104320.0,104310.0,2.17102915]
[1737795369638,0.41725006,104320.0,104310.0,0.67102915]
[1737795371443,0.41725006,104320.0,104310.0,0.66909915]
[1737795372230,0.41725006,104320.0,104310.0,0.44083709]
[1737795381048,0.23105406,104320.0,104310.0,0.44083709]
[1737795385545,0.23105406,104320.0,104310.0,1.94083709]
[1737795388356,0.23105406,104320.0,104310.0,1.97393709]
[1737795391854,0.38445006,104320.0,104310.0,1.97393709]
[1737795397065,0.38445006,104320.0,104310.0,2.20478391]
[1737795399262,0.38445006,104320.0,104310.0,2.246312]
[1737795399967,0.38445006,104320.0,104310.0,2.01546518]
[1737795400564,0.38445006,104320.0,104310.0,2.073359]
[1737795403965,0.38445006,104320.0,104310.0,2.03183091]
[1737795408068,0.38445006,104320.0,104310.0,2.26241905]
[1737795418075,0.23105406,104320.0,104310.0,2.26241905]
[1737795418368,0.20055406,104320.0,104310.0,2.62321905]
[1737795418569,0.20055406,104320.0,104310.0,2.66474919]
[1737795421068,0.20055406,104320.0,104310.0,2.72264301]
[1737795421268,0.14331512,104330.0,104320.0,0.153396]
[1737795421467,0.14331512,104330.0,104320.0,0.30128364]
[1737795424176,0.5252239,104340.0,104320.0,0.81929787]
[1737795424379,0.5252239,104340.0,104330.0,0.05789382]
[1737795426969,0.5252239,104340.0,104330.0,0.21127582]
[1737795427675,0.5252239,104340.0,104330.0,0.38361595]
[1737795443887,0.5252239,104340.0,104330.0,0.32572213]
[1737795445085,0.5252239,104340.0,104330.0,0.38361595]
[1737795445286,0.51431638,104340.0,104330.0,0.38361595]
[1737795445785,0.51431638,104340.0,104330.0,0.41441595]
[1737795446990,0.51431638,104340.0,104330.0,0.64412211]
[1737795451495,0.51431638,104340.0,104330.0,0.9985435]
[1737795465898,0.51431638,104340.0,104330.0,0.94064968]
[1737795467401,0.51431638,104340.0,104330.0,0.9985435]
[1737795468101,0.51431638,104340.0,104330.0,2.4985435]
[1737795468993,0.51431638,104340.0,104330.0,0.9985435]
[1737795469503,0.51431638,104340.0,104330.0,2.4985435]
[1737795470101,0.51431638,104340.0,104330.0,0.9985435]
[1737795477714,0.51431638,104340.0,104330.0,0.76883734]
[1737795480421,0.51431638,104340.0,104330.0,0.73803734]
[1737795484822,0.51431638,104340.0,104330.0,0.96814385]
[1737795486813,0.51431638,104340.0,104330.0,0.91025003]
[1737795487015,0.54741638,104340.0,104330.0,0.91025003]
[1737795489426,0.66220307,104340.0,104330.0,0.91025003]
[1737795492720,0.66220307,104340.0,104330.0,0.96814385]
[1737795503540,0.47573007,104340.0,104330.0,0.99854385]
[1737795508432,0.47573007,104340.0,104330.0,2.49854385]
[1737795509538,0.62909707,104340.0,104330.0,0.99854385]
[1737795511844,0.62909707,104340.0,104330.0,0.47178233]
[1737795515441,0.62909707,104340.0,104330.0,0.75920842]
[1737795531950,0.62909707,104340.0,104330.0,0.72880842]
[1737795532150,0.65999707,104340.0,104330.0,0.72880842]
[1737795534259,0.65999707,104340.0,104330.0,0.96779518]
[1737795546568,0.62909707,104340.0,104330.0,0.96779518]
[1737795550862,0.62909707,104340.0,104330.0,1.00059518]
[1737795551063,0.71519876,104340.0,104330.0,1.00059518]
[1737795555069,0.71519876,104340.0,104330.0,0.77048867]
[1737795579592,0.56183176,104340.0,104330.0,0.77048867]
[1737795579889,0.20103176,104340.0,104330.0,0.86990949]
[1737795580190,0.20551512,104350.0,104340.0,0.153367]
[1737795580488,0.20551512,104350.0,104340.0,1.76915464]
[1737795581381,0.37716961,104350.0,104340.0,1.76915464]
[1737795585881,0.0622,104350.0,104340.0,2.29556749]
[1737795586693,0.0622,104350.0,104340.0,0.79556749]
[1737795587288,0.0622,104350.0,104340.0,0.80546362]
[1737795588084,0.55455408,104360.0,104340.0,0.65209662]
[1737795588288,0.55455408,104360.0,104350.0,0.21124582]
[1737795593587,0.55455408,104360.0,104350.0,0.38339712]
[1737795594301,0.00014338,104360.0,104350.0,0.44129094]
[1737795594590,0.56541512,104370.0,104350.0,0.38927894]
[1737795594797,0.56541512,104370.0,104360.0,0.26912564]
[1737795595296,0.71873812,104370.0,104360.0,0.21123182]
[1737795597697,0.575423,104370.0,104360.0,0.38338312]
[1737795599188,0.575423,104370.0,104360.0,0.44127694]
[1737795600604,0.575423,104370.0,104360.0,0.38338312]
[1737795605706,0.214623,104370.0,104360.0,0.3254893]
[1737795605900,0.63331682,104370.0,104360.0,0.3254893]
[1737795606095,0.63331682,104370.0,104360.0,0.1721513]
[1737795606503,0.514123,104370.0,104360.0,0.23004512]
[1737795606801,0.576523,104370.0,104360.0,0.38338312]
[1737795607105,0.576523,104370.0,104360.0,0.3254893]
[1737795608300,0.63441682,104370.0,104360.0,0.1721513]
[1737795611414,0.153338,104360.0,104350.0,0.1721513]
[1737795611702,0.60343182,104360.0,104350.0,0.1721513]
[1737795613509,0.66132564,104360.0,104350.0,0.1721513]
[1737795615007,0.153352,104350.0,104340.0,0.2301885]
[1737795615202,0.63554582,104350.0,104340.0,0.2301885]
[1737795615600,0.63686048,104350.0,104340.0,0.17229468]
[1737795616206,0.6947543,104350.0,104340.0,0.17229468]
[1737795616519,0.63686048,104350.0,104340.0,0.17229468]
[1737795619812,0.7801756,104350.0,104340.0,0.00014338]
[1737795621614,0.90108655,104350.0,104340.0,0.00014338]
[1737795624017,0.75777143,104350.0,104340.0,0.00014338]
[1737795629920,0.75854836,104350.0,104340.0,0.00014338]
[1737795630818,1.11934836,104350.0,104340.0,0.00014338]
[1737795631018,1.11988609,104350.0,104340.0,0.00014338]
[1737795636609,1.12120075,104350.0,104340.0,0.00014338]
[1737795636813,1.26451587,104350.0,104340.0,0.00014338]
[1737795640125,1.49406418,104350.0,104340.0,0.00014338]
[1737795640319,0.153382,104330.0,104320.0,0.55494706]
[1737795640627,0.51812598,104330.0,104320.0,0.61284088]
[1737795642123,0.51812598,104330.0,104320.0,0.55494706]
[1737795643522,0.5760198,104330.0,104320.0,0.55494706]
[1737795644316,0.9368198,104330.0,104320.0,0.55494706]
[1737795647020,0.87892598,104330.0,104320.0,0.55494706]
[1737795647225,1.0222411,104330.0,104320.0,0.55494706]
[1737795647424,1.03223691,104330.0,104320.0,0.55494706]
[1737795648128,1.03223691,104330.0,104320.0,0.61284088]
[1737795650130,1.14694434,104330.0,104320.0,0.61284088]
[1737795651031,1.14694434,104330.0,104320.0,0.55494706]
[1737795652232,1.14694434,104330.0,104320.0,0.61284088]
[1737795652832,1.14694434,104330.0,104320.0,0.55494706]
[1737795658336,1.14694434,104330.0,104320.0,0.61284088]
[1737795658641,1.14694434,104330.0,104320.0,0.72811567]
[1737795658642,1.00362922,104330.0,104320.0,0.72811567]
[1737795661637,1.00362922,104330.0,104320.0,0.67022185]
[1737795662041,1.00362922,104330.0,104320.0,0.38279576]
[1737795670439,0.85024722,104330.0,104320.0,0.44068958]
[1737795670640,0.84025141,104330.0,104320.0,0.44068958]
[1737795670941,0.84025141,104330.0,104320.0,0.4985834]
[1737795671240,0.84025141,104330.0,104320.0,0.44068958]
[1737795672147,0.84025141,104330.0,104320.0,0.4985834]
[1737795672742,0.84025141,104330.0,104320.0,0.44068958]
[1737795673140,0.84025141,104330.0,104320.0,0.45069807]
[1737795673345,0.84025141,104330.0,104320.0,0.50859189]
[1737795673649,0.84025141,104330.0,104320.0,0.45069807]
[1737795673850,0.11865141,104330.0,104320.0,0.45069807]
[1737795678250,0.11865141,104330.0,104320.0,0.50859189]
[1737795678450,0.00394398,104330.0,104320.0,0.75014738]
[1737795678853,0.00394398,104330.0,104320.0,0.8080412]
[1737795679348,0.00394398,104330.0,104320.0,2.3080412]
[1737795680949,0.00394398,104330.0,104320.0,2.6688412]
[1737795681159,0.00394398,104330.0,104320.0,2.34952034]
[1737795681346,0.00394398,104330.0,104320.0,2.71032034]
[1737795681546,0.00394398,104330.0,104320.0,3.05499185]
[1737795684850,0.00394398,104330.0,104320.0,3.01351271]
[1737795685159,0.00394398,104330.0,104320.0,3.0549726]
[1737795686357,0.00394398,104330.0,104320.0,2.72608662]
[1737795686559,0.00394398,104330.0,104320.0,2.76754533]
[1737795687961,0.00014338,104340.0,104330.0,0.153382]
[1737795688251,0.00014338,104340.0,104330.0,0.76512835]
[1737795688451,0.00014338,104340.0,104330.0,2.26512835]
[1737795688659,0.23561838,104350.0,104330.0,2.11174635]
[1737795688861,0.23561838,104350.0,104340.0,0.69875464]
[1737795690159,0.12091095,104350.0,104340.0,0.69875464]
[1737795693555,0.12091095,104350.0,104340.0,1.22726027]
[1737795693756,0.36094338,104360.0,104350.0,0.153352]
[1737795694064,0.36094338,104360.0,104350.0,0.21124582]
[1737795695666,0.00014338,104360.0,104350.0,0.21124582]
[1737795696760,0.36094338,104360.0,104350.0,0.21124582]
[1737795697665,0.00014338,104360.0,104350.0,0.21124582]
[1737795697871,0.00014338,104360.0,104350.0,0.38317521]
[1737795698063,0.00014338,104360.0,104350.0,0.74397521]
[1737795700274,0.00014338,104360.0,104350.0,0.38317521]
[1737795701271,0.36094338,104360.0,104350.0,0.38317521]
[1737795702174,0.00014338,104360.0,104350.0,0.38317521]
[1737795706975,0.00014338,104360.0,104350.0,0.6124144]
[1737795713783,0.00014338,104360.0,104350.0,0.44048501]
[1737795714877,0.00014338,104360.0,104350.0,0.80128501]
[1737795715074,0.00014338,104360.0,104350.0,0.83348501]
[1737795717487,0.00014338,104360.0,104350.0,2.10424582]
[1737795718583,0.00014338,104360.0,104350.0,2.16213964]
[1737795718781,0.00014338,104360.0,104350.0,2.22743964]
[1737795719474,0.15798159,104370.0,104350.0,2.07408764]
[1737795719678,0.51878159,104370.0,104360.0,0.26912564]
[1737795722382,0.51878159,104370.0,104360.0,0.21123182]
[1737795723085,0.51878159,104370.0,104360.0,1.71123182]
[1737795723588,0.51878159,104370.0,104360.0,1.76912564]
[1737795723787,0.51878159,104370.0,104360.0,1.71123182]
[1737795724690,0.50879622,104370.0,104360.0,1.76912564]
[1737795725286,0.62350365,104370.0,104360.0,1.76912564]
[1737795725489,0.62350365,104370.0,104360.0,1.99895866]
[1737795725688,0.26270365,104370.0,104360.0,2.35975866]
[1737795726390,0.26270365,104370.0,104360.0,2.40016243]
[1737795726795,0.26270365,104370.0,104360.0,2.36954038]
[1737795727089,0.26270365,104370.0,104360.0,2.40967413]
[1737795727290,0.26270365,104370.0,104360.0,2.36954038]
[1737795730198,0.423,104370.0,104360.0,2.59116447]
[1737795731197,0.42152,104370.0,104360.0,2.59116447]
[1737795733198,0.42152,104370.0,104360.0,1.03327065]
[1737795733406,0.47941382,104370.0,104360.0,1.02348893]
[1737795733705,0.63273682,104370.0,104360.0,1.02348893]
[1737795734201,0.574843,104370.0,104360.0,1.02348893]
[1737795734394,0.66063922,104370.0,104360.0,1.02348893]
[1737795734595,0.66063922,104370.0,104360.0,0.67881742]
[1737795734797,0.66063922,104370.0,104360.0,0.73671124]
[1737795738802,0.66063922,104370.0,104360.0,0.44098475]
[1737795743404,0.29983922,104370.0,104360.0,0.44098475]
[1737795746119,0.41454665,104370.0,104360.0,0.96541965]
[1737795748623,0.77534665,104370.0,104360.0,0.90752583]
[1737795749024,0.41454665,104370.0,104360.0,0.90752583]
[1737795749223,0.77534665,104370.0,104360.0,0.90752583]
[1737795749619,0.41454665,104370.0,104360.0,0.90752583]
[1737795750515,0.29983922,104370.0,104360.0,0.90752583]
[1737795752219,0.66063922,104370.0,104360.0,0.90752583]
[1737795753222,0.77534665,104370.0,104360.0,0.90752583]
[1737795756718,0.77534665,104370.0,104360.0,0.38309093]
[1737795757427,0.83324047,104370.0,104360.0,0.38309093]
[1737795760329,0.77534665,104370.0,104360.0,0.38309093]
[1737795760529,0.83324047,104370.0,104360.0,0.38309093]
[1737795760724,0.74744425,104370.0,104360.0,0.22975293]
[1737795760932,0.89075937,104370.0,104360.0,0.40215317]
[1737795762624,0.83286555,104370.0,104360.0,0.40215317]
[1737795763023,0.83286555,104370.0,104360.0,1.90215317]
[1737795764129,0.83286555,104370.0,104360.0,2.05549117]
[1737795765032,0.68955043,104370.0,104360.0,2.05549117]
[1737795766219,0.68955043,104370.0,104360.0,2.11338499]
[1737795768726,0.68955043,104370.0,104360.0,2.05549117]
[1737795768927,0.74744425,104370.0,104360.0,2.05549117]
[1737795769333,0.68955043,104370.0,104360.0,2.05549117]
[1737795773336,0.83286555,104370.0,104360.0,2.05549117]
[1737795777140,0.68955043,104370.0,104360.0,2.05549117]
[1737795779132,0.62883043,104370.0,104360.0,2.11338499]
[1737795780233,0.62883043,104370.0,104360.0,0.61338499]
[1737795781035,0.77214555,104370.0,104360.0,0.61338499]
[1737795782244,0.61882255,104370.0,104360.0,0.61338499]
[1737795784344,0.61882255,104370.0,104360.0,0.44098475]
[1737795784743,0.25802255,104370.0,104360.0,0.44098475]
[1737795787252,0.61882255,104370.0,104360.0,0.44098475]
[1737795788652,0.56157214,104370.0,104360.0,0.44098475]
[1737795792157,0.20077214,104370.0,104360.0,0.95976788]
[1737795797145,0.08606471,104370.0,104360.0,0.95976788]
[1737795797657,0.44686471,104370.0,104360.0,0.95976788]
[1737795801449,0.56157214,104370.0,104360.0,0.95976788]
[1737795803357,0.20077214,104370.0,104360.0,0.95976788]
[1737795813169,0.08606471,104370.0,104360.0,0.73001495]
[1737795813662,0.08606471,104370.0,104360.0,1.14870877]
[1737795816067,0.44686471,104370.0,104360.0,0.73001495]
[1737795818665,0.08606471,104370.0,104360.0,0.73001495]
[1737795819670,0.08606471,104370.0,104360.0,1.09081495]
[1737795820962,0.08606471,104370.0,104360.0,0.73001495]
[1737795821166,0.08606471,104370.0,104360.0,1.09081495]
[1737795823276,0.08606471,104370.0,104360.0,1.14870877]
[1737795823578,0.08606471,104370.0,104360.0,1.13230588]
[1737795823972,0.08606471,104370.0,104360.0,1.1901997]
[1737795824971,0.66165353,104380.0,104370.0,0.153323]
[1737795824972,0.60440312,104380.0,104370.0,0.153323]
[1737795825172,0.60440312,104380.0,104370.0,0.21121682]
[1737795825478,0.56171552,104380.0,104370.0,0.21121682]
[1737795825673,0.56171552,104380.0,104370.0,0.24371682]
[1737795826675,0.56171552,104380.0,104370.0,0.27371682]
[1737795827176,0.20091552,104380.0,104370.0,1.77371682]
[1737795827485,0.20091552,104380.0,104370.0,2.13451682]
[1737795828379,0.20091552,104380.0,104370.0,2.8831159]
[1737795831982,0.00014338,104380.0,104370.0,2.42159947]
[1737795833476,0.00014338,104380.0,104370.0,2.43112137]
[1737795839589,0.00014338,104380.0,104370.0,2.40112137]
[1737795840288,0.36094338,104380.0,104370.0,0.44992755]
[1737795840486,0.54735138,104380.0,104370.0,0.44992755]
[1737795840893,0.54735138,104380.0,104370.0,1.94992755]
[1737795841285,0.6052452,104380.0,104370.0,0.44040565]
[1737795843500,0.6052452,104380.0,104370.0,0.38285362]
[1737795845198,0.6052452,104380.0,104370.0,0.22953062]
[1737795845199,0.66313902,104380.0,104370.0,0.22953062]
[1737795848091,0.153323,104370.0,104360.0,0.32551349]
[1737795848294,0.63461682,104370.0,104360.0,0.32551349]
[1737795849697,0.63461682,104370.0,104360.0,0.17217849]
[1737795851997,0.153338,104360.0,104350.0,2.11309231]
[1737795852199,0.514138,104360.0,104350.0,2.11309231]
[1737795852700,0.57203182,104360.0,104350.0,0.61309231]
[1737795853992,0.60273182,104360.0,104350.0,0.61309231]
[1737795854194,0.60273182,104360.0,104350.0,0.55519849]
[1737795854500,0.66062564,104360.0,104350.0,0.40185249]
[1737795856100,0.67008257,104360.0,104350.0,0.40185249]
[1737795860095,0.153367,104340.0,104330.0,0.17000131]
[1737795860298,0.57206082,104340.0,104330.0,0.17000131]
[1737795860505,0.57206082,104340.0,104330.0,1.67945057]
[1737795861104,0.60496082,104340.0,104330.0,1.67945057]
[1737795861499,0.66285464,104340.0,104330.0,1.67000131]
[1737795861800,0.60496082,104340.0,104330.0,1.67000131]
[1737795862303,0.60496082,104340.0,104330.0,1.65349386]
[1737795863599,0.66285464,104340.0,104330.0,1.65349386]
[1737795864200,0.60496082,104340.0,104330.0,1.65349386]
[1737795865192,0.60496082,104340.0,104330.0,1.71138768]
[1737795866001,0.55661754,104340.0,104330.0,1.71138768]
[1737795871600,0.55661754,104340.0,104330.0,1.74338768]
[1737795871601,0.52371754,104340.0,104330.0,1.74338768]
[1737795874602,0.88451754,104340.0,104330.0,1.74338768]
[1737795879911,0.88451754,104340.0,104330.0,1.53211586]
[1737795880101,0.94241136,104340.0,104330.0,1.53211586]
[1737795883912,0.88451754,104340.0,104330.0,1.53211586]
[1737795884212,0.88451754,104340.0,104330.0,1.59000968]
[1737795884411,0.88451754,104340.0,104330.0,1.53211586]
[1737795885017,0.88451754,104340.0,104330.0,1.68549786]
[1737795886213,0.88451754,104340.0,104330.0,1.74339168]
[1737795886813,0.874967,104340.0,104330.0,1.74339168]
[1737795887115,0.874967,104340.0,104330.0,1.77639168]
[1737795891114,0.514167,104340.0,104330.0,1.77639168]
[1737795893810,0.3608,104340.0,104330.0,1.77639168]
[1737795898515,0.44673012,104340.0,104330.0,2.5277715]
[1737795900318,0.44673012,104340.0,104330.0,1.08566532]
[1737795900511,0.44673012,104340.0,104330.0,1.0277715]
[1737795900714,0.44673012,104340.0,104330.0,2.5277715]
[1737795901623,0.25816593,104350.0,104340.0,0.153367]
[1737795901813,0.11485081,104350.0,104340.0,0.31232082]
[1737795902014,0.47565081,104350.0,104340.0,0.31232082]
[1737795902222,0.47565081,104350.0,104340.0,1.78002082]
[1737795902413,0.62900281,104350.0,104340.0,1.78002082]
[1737795902614,0.66010281,104350.0,104340.0,1.78002082]
[1737795903016,0.69030281,104350.0,104340.0,1.78002082]
[1737795904331,0.74819663,104350.0,104340.0,0.222127]
[1737795905026,0.57559538,104350.0,104340.0,0.62395303]
[1737795906423,0.57559538,104350.0,104340.0,0.55519303]
[1737795908023,0.57559538,104350.0,104340.0,0.61308685]
[1737795917027,0.57559538,104350.0,104340.0,0.55519303]
[1737795918324,0.6334892,104350.0,104340.0,0.55519303]
[1737795919926,0.74819663,104350.0,104340.0,0.55519303]
[1737795923336,0.74819663,104350.0,104340.0,0.40182603]
[1737795923737,0.74819663,104350.0,104340.0,0.17229541]
[1737795925233,0.74819663,104350.0,104340.0,0.23018923]
[1737795925427,0.74819663,104350.0,104340.0,0.17229541]
[1737795926837,0.69030281,104350.0,104340.0,0.38355623]
[1737795927422,0.69030281,104350.0,104340.0,0.32566241]
[1737795929936,0.69030281,104350.0,104340.0,0.38355623]
[1737795935126,0.47565081,104350.0,104340.0,0.44145005]
[1737795935333,0.47565081,104350.0,104340.0,0.47425005]
[1737795935731,0.47565081,104350.0,104340.0,0.70378067]
[1737795936739,0.47565081,104350.0,104340.0,0.64588685]
[1737795937237,0.11485081,104350.0,104340.0,0.64588685]
[1737795938041,0.47565081,104350.0,104340.0,0.64588685]
[1737795938443,0.47565081,104350.0,104340.0,0.65528621]
[1737795938638,0.11485081,104350.0,104340.0,0.65528621]
[1737795939235,0.00014338,104350.0,104340.0,1.01240637]
[1737795940345,0.00014338,104350.0,104340.0,1.07030019]
[1737795942540,0.00014338,104350.0,104340.0,1.01240637]
[1737795942845,0.00014338,104350.0,104340.0,0.78287575]
[1737795943144,0.00014338,104350.0,104340.0,0.84076957]
[1737795945547,0.36094338,104350.0,104340.0,0.84076957]
[1737795950152,0.36094338,104350.0,104340.0,0.54105724]
[1737795952152,0.00014338,104350.0,104340.0,0.54105724]
[1737795952951,0.00014338,104350.0,104340.0,2.04105724]
[1737795954346,0.00014338,104350.0,104340.0,1.98316342]
[1737795954548,0.00014338,104350.0,104340.0,0.51912342]
[1737795954948,0.00014338,104350.0,104340.0,2.01912342]
[1737795955754,0.00014338,104350.0,104340.0,2.07701724]
[1737795959259,0.00014338,104350.0,104340.0,1.847314]
[1737795960155,0.00014338,104350.0,104340.0,1.78942018]
[1737795963158,0.03184338,104350.0,104340.0,1.78942018]
[1737795964961,0.06304338,104350.0,104340.0,1.78942018]
[1737795967564,0.06304338,104350.0,104340.0,2.66196602]
[1737795968856,0.06304338,104350.0,104340.0,2.52591284]
[1737795969060,0.6350892,104350.0,104340.0,2.52591284]
[1737795969665,0.57719538,104350.0,104340.0,2.52591284]
[1737795970662,0.57719538,104350.0,104340.0,2.58380666]
[1737795971463,0.57719538,104350.0,104340.0,2.52591284]
[1737795974671,0.58674355,104350.0,104340.0,2.52591284]
[1737795975469,0.52384355,104350.0,104340.0,1.08380666]
[1737795975673,0.11485081,104350.0,104340.0,0.44148734]
[1737795976066,0.11485081,104350.0,104340.0,1.88359352]
[1737795976272,0.11485081,104350.0,104340.0,1.94148734]
[1737795978274,0.11485081,104350.0,104340.0,1.88359352]
[1737795978575,0.00014338,104350.0,104340.0,2.22812041]
[1737795980072,0.00014338,104350.0,104340.0,2.28601423]
[1737795981168,0.00014338,104350.0,104340.0,2.31771423]
[1737795981568,0.00014338,104350.0,104340.0,2.67851423]
[1737795981871,0.00014338,104350.0,104340.0,2.91983415]
[1737795984876,0.00014338,104350.0,104340.0,2.69005721]
[1737795985072,0.00014338,104350.0,104340.0,2.32925721]
[1737795985276,0.00014338,104350.0,104340.0,2.69005721]
[1737795992886,0.00014338,104350.0,104340.0,2.73151619]
[1737795996680,0.00014338,104350.0,104340.0,3.07974914]
[1737796000684,0.00014338,104350.0,104340.0,2.78910505]
[1737796010801,0.00014338,104350.0,104340.0,3.07974914]
[1737796016301,0.00014338,104350.0,104340.0,3.14850914]
[1737796021999,0.00014338,104350.0,104340.0,3.05891532]
[1737796023207,0.00014338,104350.0,104340.0,3.11680914]
[1737796036724,0.11635147,104360.0,104350.0,0.153352]
[1737796036917,0.11635147,104360.0,104350.0,0.6440048]
[1737796039918,0.0303,104360.0,104350.0,1.52064032]
[1737796041024,0.23120228,104370.0,104350.0,1.36728832]
[1737796041319,0.23120228,104370.0,104360.0,0.21123182]
[1737796043125,0.2890961,104370.0,104360.0,0.21123182]
[1737796043322,0.2890961,104370.0,104360.0,0.96970212]
[1737796044222,0.2890961,104370.0,104360.0,0.9118083]
[1737796047133,0.17438867,104370.0,104360.0,0.38318261]
[1737796053045,0.11649485,104370.0,104360.0,0.38318261]
[1737796054343,0.11649485,104370.0,104360.0,0.44107643]
[1737796055045,0.11649485,104370.0,104360.0,0.38318261]
[1737796058140,0.17438867,104370.0,104360.0,0.38318261]
[1737796059249,0.11649485,104370.0,104360.0,0.38318261]
[1737796061341,0.23120228,104370.0,104360.0,0.38318261]
[1737796064445,0.23120228,104370.0,104360.0,0.44107643]
[1737796066260,0.23120228,104370.0,104360.0,0.38318261]
[1737796069045,0.23120228,104370.0,104360.0,0.67048838]
[1737796071042,0.2890961,104370.0,104360.0,0.67048838]
[1737796071246,0.8032191,104370.0,104360.0,0.51715038]
[1737796073058,0.8032191,104370.0,104360.0,0.28730577]
[1737796077151,0.86048275,104370.0,104360.0,0.17243971]
[1737796081559,0.86048275,104370.0,104360.0,0.22987357]
[1737796081954,0.86048275,104370.0,104360.0,0.38321157]
[1737796085361,0.49968275,104370.0,104360.0,0.38321157]
[1737796088159,0.44178893,104370.0,104360.0,0.38321157]
[1737796088556,0.38454764,104370.0,104360.0,0.38321157]
[1737796090368,0.44244146,104370.0,104360.0,0.38321157]
[1737796090562,0.38454764,104370.0,104360.0,0.38321157]
[1737796090763,0.23122464,104370.0,104360.0,0.74401157]
[1737796091768,0.03044338,104370.0,104360.0,0.514138]
[1737796092061,0.03044338,104370.0,104360.0,0.55562305]
[1737796092661,0.00014338,104370.0,104360.0,0.55562305]
[1737796092968,0.00014338,104370.0,104360.0,0.64641687]
[1737796093161,0.00014338,104370.0,104360.0,0.58852305]
[1737796093373,0.00014338,104370.0,104360.0,2.08852305]
[1737796093561,0.00014338,104370.0,104360.0,2.14641687]
[1737796093764,0.00014338,104370.0,104360.0,2.77840909]
[1737796094160,0.00014338,104370.0,104360.0,2.79481786]
[1737796094361,0.00014338,104370.0,104360.0,2.83628153]
[1737796094770,0.00014338,104370.0,104360.0,2.77838771]
[1737796094967,0.00014338,104370.0,104360.0,2.83628153]
[1737796097670,0.0860847,104380.0,104360.0,3.19417535]
[1737796097862,0.11477961,104390.0,104380.0,0.153308]
[1737796098167,0.11477961,104390.0,104380.0,0.62989564]
[1737796098368,0.11477961,104390.0,104380.0,0.66099564]
[1737796098872,0.11477961,104390.0,104380.0,2.16099564]
[1737796099464,0.11477961,104390.0,104380.0,2.22991564]
[1737796101665,0.1000956,104400.0,104380.0,2.30579111]
[1737796101973,0.1000956,104400.0,104390.0,0.60308782]
[1737796105867,0.31127242,104400.0,104380.0,0.87058129]
[1737796106177,0.0628,104390.0,104380.0,0.87010129]
[1737796106569,0.0628,104390.0,104380.0,0.80118129]
[1737796108768,0.0628,104390.0,104380.0,0.57199782]
[1737796109877,0.0628,104390.0,104380.0,0.62989164]
[1737796111469,0.0628,104390.0,104380.0,0.57199782]
[1737796112579,0.63478782,104390.0,104370.0,2.6633307]
[1737796112769,0.63478782,104390.0,104370.0,2.6628107]
[1737796113077,0.576894,104390.0,104380.0,0.05789382]
[1737796116282,0.576894,104390.0,104380.0,0.21120182]
[1737796119471,0.48149382,104390.0,104370.0,0.65772751]
[1737796119673,0.66299564,104380.0,104370.0,0.22932685]
[1737796119877,0.60510182,104380.0,104370.0,0.22932685]
[1737796120773,0.60510182,104380.0,104370.0,0.28722067]
[1737796121179,0.547208,104380.0,104370.0,0.28722067]
[1737796121683,0.60510182,104380.0,104370.0,0.22932685]
[1737796122282,0.60510182,104380.0,104370.0,0.00014338]
[1737796128990,0.60510182,104380.0,104370.0,0.15346638]
[1737796139597,0.514108,104380.0,104370.0,0.15346638]
[1737796140288,0.514108,104380.0,104370.0,0.2113602]
[1737796140289,0.3608,104380.0,104370.0,0.2113602]
[1737796140491,0.68185412,104390.0,104380.0,0.153308]
[1737796140694,0.32105412,104390.0,104380.0,0.26909564]
[1737796140989,0.32105412,104390.0,104380.0,0.24120182]
[1737796141196,0.25825412,104390.0,104380.0,0.29909564]
[1737796143395,0.25825412,104390.0,104380.0,0.65989564]
[1737796145702,0.57567521,104400.0,104390.0,0.153294]
[1737796145892,0.57567521,104400.0,104390.0,0.21118782]
[1737796150698,0.51878942,104400.0,104390.0,0.153294]
[1737796151205,0.4608956,104400.0,104390.0,0.21118782]
[1737796156301,0.1000956,104400.0,104390.0,0.21118782]
[1737796156710,0.1000956,104400.0,104390.0,0.57198782]
[1737796156906,0.1000956,104400.0,104390.0,2.07198782]
[1737796157620,0.1000956,104400.0,104390.0,2.13318782]
[1737796158610,0.1000956,104400.0,104390.0,0.63318782]
[1737796158808,0.1000956,104400.0,104390.0,0.60198782]
[1737796159308,0.1000956,104400.0,104390.0,2.10198782]
[1737796160013,0.1000956,104400.0,104390.0,0.60198782]
[1737796160516,0.1000956,104400.0,104390.0,2.10198782]
[1737796162315,0.1000956,104400.0,104390.0,2.33117129]
[1737796169417,0.1000956,104400.0,104390.0,0.80117129]